{"text_format":"1","workbook":"xlsx","n_sheets":2,"sheets":["2020","Data"],"not_rendered":{"charts":0,"images":2,"macros":1,"external_links":0,"defined_names":4,"comments":0,"pivot_tables":0},"unopened":[],"bounds":{"document_bytes":16777216,"sheet_cells":100000,"rows_first":2000,"rows_last":500,"rows_between":2000,"halvings":0,"cell_chars":16384,"cell_head_chars":4096},"cells_cut":0,"cells_raw":0,"read":"whole","date_system":"1900"}

{"sheet":"2020","index":0,"n_rows":1218,"n_cols":70,"rows_kept":1218,"cut":false,"hidden":false,"merged":[[0,10,0,13],[0,14,0,17],[0,66,0,69],[0,18,0,22],[0,23,0,26],[0,27,0,30],[0,31,0,35],[0,36,0,39],[0,40,0,43],[0,44,0,48],[0,49,0,52],[0,53,0,56],[0,57,0,61],[0,62,0,65]]}
[null,null,null,null,null,null,"Calc. hours","% Gereed","Delta","Sum","November",null,null,null,"December",null,null,null,"Januari",null,null,null,null,"Februari",null,null,null,"Maart",null,null,null,"April",null,null,null,null,"Mei",null,null,null,"Juni",null,null,null,"Juli",null,null,null,null,"Augustus",null,null,null,"September",null,null,null,"Oktober",null,null,null,null,"November",null,null,null,"December"]
["categorie","Projectname",null,"Employee",null,null,null,null,null,null,null,{"$f":"SUM(L5:L252)","v":16},0,8,0,0,0,168,null,{"$f":"SUM(T5:T252)","v":0},96,170,40,0,0,0,0,0,0,0,0,0,0,0,0,0,0,0,0,0,0,0,0,0,0,0,0,0,0,0,0,{"$f":"SUM(AZ5:AZ252)","v":0},0,0,0,0,0,0,0,0,0,0,0,0,0,0,0,0,0,0]
[null,null,"sprint",null,"activiteit",null,null,null,null,null,"wk 45","wk 46","wk 47","wk 48","wk 49","wk 50","wk 51","wk 52","wk 1","wk 2","wk 3","wk 4","wk 5","wk 6","wk 7","wk 8","wk 9","wk 10","wk 11","wk 12","wk 13","wk 14","wk 15","wk 16","wk 17","wk 18","wk 19","wk 20","wk 21","wk 22","wk 23","wk 24","wk 25","wk 26","wk 27","wk 28","wk 29","wk 30","wk 31","wk 32","wk 33","wk 34","wk 35","wk 36","wk 37","wk 38","wk 39","wk 40","wk 41","wk 42","wk 43","wk 44","wk 45","wk 46","wk 47","wk 48","wk 49","wk 50","wk 51","wk 52"]
["Opdracht","Project 1",null,null,null,null,null,null,{"$f":"IF(G4=\"\",\"\",(IF(J4=\"-\",\"-\",(G4-J4))))","v":""}]
[null,null,"Product A","Piet",null,null,32,null,{"$f":"IF(G5=\"\",\"\",(IF(J5=\"\",\"\",(G5-J5))))","v":0},{"$f":"IF(SUM(S5:BR5)=0,\"\",(SUM(S5:BR5)))","v":32},null,null,null,null,null,null,null,32,32]
[null,null,"Product A","Frans",null,null,40,null,{"$f":"IF(G6=\"\",\"\",(IF(J6=\"\",\"\",(G6-J6))))","v":0},{"$f":"IF(SUM(S6:BR6)=0,\"\",(SUM(S6:BR6)))","v":40},null,16,null,null,null,null,null,40,40]
[null,null,"Product B","Peter",null,null,16,null,0,16,null,null,null,null,null,null,null,16,16]
[null," ","Product B","Trudy",null,null,40,null,0,40,null,null,null,null,null,null,null,40,40]
[null,null,"Product B","Sandra",null,null,40,null,0,40,null,null,null,null,null,null,null,40,40]
["Opdracht","Project 2",null,null,null,null,null,null,"",""]
[null,null,"Dienst 1","Piet",null,null,120,null,0,{"$f":"IF(SUM(K11:BR11)=0,\"\",(SUM(K11:BR11)))","v":120},null,null,null,null,null,null,null,null,null,null,40,40,40]
[null,null,"Dienst 2","Trudy",null,null,23,null,"",""]
[null,null,"Product A","Peter",null,null,43,null,"",""]
[null,null,"Product A","Piet",null,null,76,null,"",""]
[null,null,"Product A","Sandra",null,null,45,null,-9,54,null,null,null,null,null,null,null,null,null,null,54]
[null,null,"Product B","Peter",null,null,24,null,"",""]
[null,null,"Product B","Trudy",null,null,16,null,-38,54,null,null,null,null,null,null,null,null,null,null,null,54]
[null,null,"Product B","Sandra",null,null,16,null,"",""]
[null,null,"Afronding","Piet",null,null,120,null,44,76,null,null,null,null,null,null,null,null,null,null,null,76]
[null,null,"Afronding","Trudy",null,null,12,null,"",""]
[null,null,"Dossier","Peter",null,null,40,null,"",""]
["Opdracht","Project 3",null,null,null,null,null,null,"",""]
[null,null,"Projectmnt","Piet","bespreking",null,180,null,172,8,null,null,null,8]
[null,null,null,"Peter","offerte",null,40,null,"",""]
[null,null,null,"Sandra","offerte",null,40,null,"",""]
["Offerte","offerte 1",null,"Piet","overleg",null,20,null,{"$f":"IF(G26=\"\",\"\",(IF(J26=\"\",\"\",(G26-J26))))","v":18},{"$f":"IF(SUM(S26:BR26)=0,\"\",(SUM(S26:BR26)))","v":2},null,null,null,null,null,null,null,null,null,null,2]
[null,null,null,null,null,null,null,null,"","",null,null,null,null,null,null,null,null,null,null,"\\"]
[null,null,null,null,null,null,null,null,"",""]
[null,null,null,null,null,null,null,null,"",""]
[null,null,null,null,null,null,null,null,"",""]
[null,null,null,null,null,null,null,null,"",""]
[null,null,null,null,null,null,null,null,"",""]
[null,null,null,null,null,null,null,null,{"$f":"IF(G33=\"\",\"\",(IF(J33=\"\",\"\",(G33-J33))))","v":""},{"$f":"IF(SUM(S33:BR33)=0,\"\",(SUM(S33:BR33)))","v":""}]
[null,null,null,null,null,null,null,null,"",""]
[null,null,null,null,null,null,null,null,"",""]
[null,null,null,null,null,null,null,null,"",""]
[null,null,null,null,null,null,null,null,"",""]
[null,null,null,null,null,null,null,null,"",""]
[null,null,null,null,null,null,null,null,"",""]
[null,null,null,null,null,null,null,null,"",""]
[null,null,null,null,null,null,null,null,"",""]
[null,null,null,null,null,null,null,null,"",""]
[null,null,null,null,null,null,null,null,"",""]
[null,null,null,null,null,null,null,null,"",""]
[null,null,null,null,null,null,null,null,"",""]
[null,null,null,null,null,null,null,null,"",""]
[null,null,null,null,null,null,null,null,"",""]
[null,null,null,null,null,null,null,null,"",""]
[null,null,null,null,null,null,null,null,"",""]
[null,null,null,null,null,null,null,null,"",""]
[null,null,null,null,null,null,null,null,"",""]
[null,null,null,null,null,null,null,null,"",""]
[null,null,null,null,null,null,null,null,"",""]
[null,null,null,null,null,null,null,null,"",""]
[null,null,null,null,null,null,null,null,"",""]
[null,null,null,null,null,null,null,null,"",""]
[null,null,null,null,null,null,null,null,"",""]
[null,null,null,null,null,null,null,null,"",""]
[null,null,null,null,null,null,null,null,"",""]
[null,null,null,null,null,null,null,null,"",""]
[null,null,null,null,null,null,null,null,"",""]
[null,null,null,null,null,null,null,null,"",""]
[null,null,null,null,null,null,null,null,"",""]
[null,null,null,null,null,null,null,null,"",""]
[null,null,null,null,null,null,null,null,"",""]
[null,null,null,null,null,null,null,null,"",""]
[null,null,null,null,null,null,null,null,"",""]
[null,null,null,null,null,null,null,null,"",""]
[null,null,null,null,null,null,null,null,"",""]
[null,null,null,null,null,null,null,null,"",""]
[null,null,null,null,null,null,null,null,"",""]
[null,null,null,null,null,null,null,null,"",""]
[null,null,null,null,null,null,null,null,"",""]
[null,null,null,null,null,null,null,null,"",""]
[null,null,null,null,null,null,null,null,"",""]
[null,null,null,null,null,null,null,null,"",""]
[null,null,null,null,null,null,null,null,"",""]
[null,null,null,null,null,null,null,null,"",""]
[null,null,null,null,null,null,null,null,"",""]
[null,null,null,null,null,null,null,null,"",""]
[null,null,null,null,null,null,null,null,"",""]
[null,null,null,null,null,null,null,null,"",""]
[null,null,null,null,null,null,null,null,"",""]
[null,null,null,null,null,null,null,null,"",""]
[null,null,null,null,null,null,null,null,"",""]
[null,null,null,null,null,null,null,null,"",""]
[null,null,null,null,null,null,null,null,"",""]
[null,null,null,null,null,null,null,null,"",""]
[null,null,null,null,null,null,null,null,"",""]
[null,null,null,null,null,null,null,null,"",""]
[null,null,null,null,null,null,null,null,"",""]
[null,null,null,null,null,null,null,null,"",""]
[null,null,null,null,null,null,null,null,"",""]
[null,null,null,null,null,null,null,null,"",""]
[null,null,null,null,null,null,null,null,"",""]
[null,null,null,null,null,null,null,null,"",""]
[null,null,null,null,null,null,null,null,{"$f":"IF(G97=\"\",\"\",(IF(J97=\"\",\"\",(G97-J97))))","v":""},{"$f":"IF(SUM(S97:BR97)=0,\"\",(SUM(S97:BR97)))","v":""}]
[null,null,null,null,null,null,null,null,"",""]
[null,null,null,null,null,null,null,null,"",""]
[null,null,null,null,null,null,null,null,"",""]
[null,null,null,null,null,null,null,null,"",""]
[null,null,null,null,null,null,null,null,"",""]
[null,null,null,null,null,null,null,null,"",""]
[null,null,null,null,null,null,null,null,"",""]
[null,null,null,null,null,null,null,null,"",""]
[null,null,null,null,null,null,null,null,"",""]
[null,null,null,null,null,null,null,null,"",""]
[null,null,null,null,null,null,null,null,"",""]
[null,null,null,null,null,null,null,null,"",""]
[null,null,null,null,null,null,null,null,"",""]
[null,null,null,null,null,null,null,null,"",""]
[null,null,null,null,null,null,null,null,"",""]
[null,null,null,null,null,null,null,null,"",""]
[null,null,null,null,null,null,null,null,"",""]
[null,null,null,null,null,null,null,null,"",""]
[null,null,null,null,null,null,null,null,"",""]
[null,null,null,null,null,null,null,null,"",""]
[null,null,null,null,null,null,null,null,"",""]
[null,null,null,null,null,null,null,null,"",""]
[null,null,null,null,null,null,null,null,"",""]
[null,null,null,null,null,null,null,null,"",""]
[null,null,null,null,null,null,null,null,"",""]
[null,null,null,null,null,null,null,null,"",""]
[null,null,null,null,null,null,null,null,"",""]
[null,null,null,null,null,null,null,null,"",""]
[null,null,null,null,null,null,null,null,"",""]
[null,null,null,null,null,null,null,null,"",""]
[null,null,null,null,null,null,null,null,"",""]
[null,null,null,null,null,null,null,null,"",""]
[null,null,null,null,null,null,null,null,"",""]
[null,null,null,null,null,null,null,null,"",""]
[null,null,null,null,null,null,null,null,"",""]
[null,null,null,null,null,null,null,null,"",""]
[null,null,null,null,null,null,null,null,"",""]
[null,null,null,null,null,null,null,null,"",""]
[null,null,null,null,null,null,null,null,"",""]
[null,null,null,null,null,null,null,null,"",""]
[null,null,null,null,null,null,null,null,"",""]
[null,null,null,null,null,null,null,null,"",""]
[null,null,null,null,null,null,null,null,"",""]
[null,null,null,null,null,null,null,null,"",""]
[null,null,null,null,null,null,null,null,"",""]
[null,null,null,null,null,null,null,null,"",""]
[null,null,null,null,null,null,null,null,"",""]
[null,null,null,null,null,null,null,null,"",""]
[null,null,null,null,null,null,null,null,"",""]
[null,null,null,null,null,null,null,null,"",""]
[null,null,null,null,null,null,null,null,"",""]
[null,null,null,null,null,null,null,null,"",""]
[null,null,null,null,null,null,null,null,"",""]
[null,null,null,null,null,null,null,null,"",""]
[null,null,null,null,null,null,null,null,"",""]
[null,null,null,null,null,null,null,null,"",""]
[null,null,null,null,null,null,null,null,"",""]
[null,null,null,null,null,null,null,null,"",""]
[null,null,null,null,null,null,null,null,"",""]
[null,null,null,null,null,null,null,null,"",""]
[null,null,null,null,null,null,null,null,"",""]
[null,null,null,null,null,null,null,null,"",""]
[null,null,null,null,null,null,null,null,"",""]
[null,null,null,null,null,null,null,null,{"$f":"IF(G161=\"\",\"\",(IF(J161=\"\",\"\",(G161-J161))))","v":""},{"$f":"IF(SUM(S161:BR161)=0,\"\",(SUM(S161:BR161)))","v":""}]
[null,null,null,null,null,null,null,null,"",""]
[null,null,null,null,null,null,null,null,"",""]
[null,null,null,null,null,null,null,null,"",""]
[null,null,null,null,null,null,null,null,"",""]
[null,null,null,null,null,null,null,null,"",""]
[null,null,null,null,null,null,null,null,"",""]
[null,null,null,null,null,null,null,null,"",""]
[null,null,null,null,null,null,null,null,"",""]
[null,null,null,null,null,null,null,null,"",""]
[null,null,null,null,null,null,null,null,"",""]
[null,null,null,null,null,null,null,null,"",""]
[null,null,null,null,null,null,null,null,"",""]
[null,null,null,null,null,null,null,null,"",""]
[null,null,null,null,null,null,null,null,"",""]
[null,null,null,null,null,null,null,null,"",""]
[null,null,null,null,null,null,null,null,"",""]
[null,null,null,null,null,null,null,null,"",""]
[null,null,null,null,null,null,null,null,"",""]
[null,null,null,null,null,null,null,null,"",""]
[null,null,null,null,null,null,null,null,"",""]
[null,null,null,null,null,null,null,null,"",""]
[null,null,null,null,null,null,null,null,"",""]
[null,null,null,null,null,null,null,null,"",""]
[null,null,null,null,null,null,null,null,"",""]
[null,null,null,null,null,null,null,null,"",""]
[null,null,null,null,null,null,null,null,"",""]
[null,null,null,null,null,null,null,null,"",""]
[null,null,null,null,null,null,null,null,"",""]
[null,null,null,null,null,null,null,null,"",""]
[null,null,null,null,null,null,null,null,"",""]
[null,null,null,null,null,null,null,null,"",""]
[null,null,null,null,null,null,null,null,"",""]
[null,null,null,null,null,null,null,null,"",""]
[null,null,null,null,null,null,null,null,"",""]
[null,null,null,null,null,null,null,null,"",""]
[null,null,null,null,null,null,null,null,"",""]
[null,null,null,null,null,null,null,null,"",""]
[null,null,null,null,null,null,null,null,"",""]
[null,null,null,null,null,null,null,null,"",""]
[null,null,null,null,null,null,null,null,"",""]
[null,null,null,null,null,null,null,null,"",""]
[null,null,null,null,null,null,null,null,"",""]
[null,null,null,null,null,null,null,null,"",""]
[null,null,null,null,null,null,null,null,"",""]
[null,null,null,null,null,null,null,null,"",""]
[null,null,null,null,null,null,null,null,"",""]
[null,null,null,null,null,null,null,null,"",""]
[null,null,null,null,null,null,null,null,"",""]
[null,null,null,null,null,null,null,null,"",""]
[null,null,null,null,null,null,null,null,"",""]
[null,null,null,null,null,null,null,null,"",""]
[null,null,null,null,null,null,null,null,"",""]
[null,null,null,null,null,null,null,null,"",""]
[null,null,null,null,null,null,null,null,"",""]
[null,null,null,null,null,null,null,null,"",""]
[null,null,null,null,null,null,null,null,"",""]
[null,null,null,null,null,null,null,null,"",""]
[null,null,null,null,null,null,null,null,"",""]
[null,null,null,null,null,null,null,null,"",""]
[null,null,null,null,null,null,null,null,"",""]
[null,null,null,null,null,null,null,null,"",""]
[null,null,null,null,null,null,null,null,"",""]
[null,null,null,null,null,null,null,null,"",""]
[null,null,null,null,null,null,null,null,{"$f":"IF(G225=\"\",\"\",(IF(J225=\"\",\"\",(G225-J225))))","v":""},{"$f":"IF(SUM(S225:BR225)=0,\"\",(SUM(S225:BR225)))","v":""}]
[null,null,null,null,null,null,null,null,"",""]
[null,null,null,null,null,null,null,null,"",""]
[null,null,null,null,null,null,null,null,"",""]
[null,null,null,null,null,null,null,null,"",""]
[null,null,null,null,null,null,null,null,"",""]
[null,null,null,null,null,null,null,null,"",""]
[null,null,null,null,null,null,null,null,"",""]
[null,null,null,null,null,null,null,null,"",""]
[null,null,null,null,null,null,null,null,"",""]
[null,null,null,null,null,null,null,null,"",""]
[null,null,null,null,null,null,null,null,"",""]
[null,null,null,null,null,null,null,null,"",""]
[null,null,null,null,null,null,null,null,"",""]
[null,null,null,null,null,null,null,null,"",""]
[null,null,null,null,null,null,null,null,"",""]
[null,null,null,null,null,null,null,null,"",""]
[null,null,null,null,null,null,null,null,"",""]
[null,null,null,null,null,null,null,null,"",""]
[null,null,null,null,null,null,null,null,"",""]
[null,null,null,null,null,null,null,null,"",""]
[null,null,null,null,null,null,null,null,"",""]
[null,null,null,null,null,null,null,null,"",""]
[null,null,null,null,null,null,null,null,"",""]
[null,null,null,null,null,null,null,null,"",""]
[null,null,null,null,null,null,null,null,"",""]
[null,null,null,null,null,null,null,null,"",""]
[null,null,null,null,null,null,null,null,"",""]
[null,null,null,null,null,null,null,null,"",""]
[null,null,null,null,null,null,null,null,"",""]
[null,null,null,null,null,null,null,null,"",""]
[null,null,null,null,null,null,null,null,"",""]
[null,null,null,null,null,null,null,null,"",""]
[null,null,null,null,null,null,null,null,"",""]
[null,null,null,null,null,null,null,null,"",""]
[null,null,null,null,null,null,null,null,"",""]
[null,null,null,null,null,null,null,null,"",""]
[null,null,null,null,null,null,null,null,"",""]
[null,null,null,null,null,null,null,null,"",""]
[null,null,null,null,null,null,null,null,"",""]
[null,null,null,null,null,null,null,null,"",""]
[null,null,null,null,null,null,null,null,"",""]
[null,null,null,null,null,null,null,null,"",""]
[null,null,null,null,null,null,null,null,"",""]
[null,null,null,null,null,null,null,null,"",""]
[null,null,null,null,null,null,null,null,"",""]
[null,null,null,null,null,null,null,null,"",""]
[null,null,null,null,null,null,null,null,"",""]
[null,null,null,null,null,null,null,null,"",""]
[null,null,null,null,null,null,null,null,"",""]
[null,null,null,null,null,null,null,null,"",""]
[null,null,null,null,null,null,null,null,"",""]
[null,null,null,null,null,null,null,null,"",""]
[null,null,null,null,null,null,null,null,"",""]
[null,null,null,null,null,null,null,null,"",""]
[null,null,null,null,null,null,null,null,"",""]
[null,null,null,null,null,null,null,null,"",""]
[null,null,null,null,null,null,null,null,"",""]
[null,null,null,null,null,null,null,null,"",""]
[null,null,null,null,null,null,null,null,"",""]
[null,null,null,null,null,null,null,null,"",""]
[null,null,null,null,null,null,null,null,"",""]
[null,null,null,null,null,null,null,null,"",""]
[null,null,null,null,null,null,null,null,"",""]
[null,null,null,null,null,null,null,null,{"$f":"IF(G289=\"\",\"\",(IF(J289=\"\",\"\",(G289-J289))))","v":""},{"$f":"IF(SUM(S289:BR289)=0,\"\",(SUM(S289:BR289)))","v":""}]
[null,null,null,null,null,null,null,null,"",""]
[null,null,null,null,null,null,null,null,"",""]
[null,null,null,null,null,null,null,null,"",""]
[null,null,null,null,null,null,null,null,"",""]
[null,null,null,null,null,null,null,null,"",""]
[null,null,null,null,null,null,null,null,"",""]
[null,null,null,null,null,null,null,null,"",""]
[null,null,null,null,null,null,null,null,"",""]
[null,null,null,null,null,null,null,null,"",""]
[null,null,null,null,null,null,null,null,"",""]
[null,null,null,null,null,null,null,null,"",""]
[null,null,null,null,null,null,null,null,"",""]
[null,null,null,null,null,null,null,null,"",""]
[null,null,null,null,null,null,null,null,"",""]
[null,null,null,null,null,null,null,null,"",""]
[null,null,null,null,null,null,null,null,"",""]
[null,null,null,null,null,null,null,null,"",""]
[null,null,null,null,null,null,null,null,"",""]
[null,null,null,null,null,null,null,null,"",""]
[null,null,null,null,null,null,null,null,"",""]
[null,null,null,null,null,null,null,null,"",""]
[null,null,null,null,null,null,null,null,"",""]
[null,null,null,null,null,null,null,null,"",""]
[null,null,null,null,null,null,null,null,"",""]
[null,null,null,null,null,null,null,null,"",""]
[null,null,null,null,null,null,null,null,"",""]
[null,null,null,null,null,null,null,null,"",""]
[null,null,null,null,null,null,null,null,"",""]
[null,null,null,null,null,null,null,null,"",""]
[null,null,null,null,null,null,null,null,"",""]
[null,null,null,null,null,null,null,null,"",""]
[null,null,null,null,null,null,null,null,"",""]
[null,null,null,null,null,null,null,null,"",""]
[null,null,null,null,null,null,null,null,"",""]
[null,null,null,null,null,null,null,null,"",""]
[null,null,null,null,null,null,null,null,"",""]
[null,null,null,null,null,null,null,null,"",""]
[null,null,null,null,null,null,null,null,"",""]
[null,null,null,null,null,null,null,null,"",""]
[null,null,null,null,null,null,null,null,"",""]
[null,null,null,null,null,null,null,null,"",""]
[null,null,null,null,null,null,null,null,"",""]
[null,null,null,null,null,null,null,null,"",""]
[null,null,null,null,null,null,null,null,"",""]
[null,null,null,null,null,null,null,null,"",""]
[null,null,null,null,null,null,null,null,"",""]
[null,null,null,null,null,null,null,null,"",""]
[null,null,null,null,null,null,null,null,"",""]
[null,null,null,null,null,null,null,null,"",""]
[null,null,null,null,null,null,null,null,"",""]
[null,null,null,null,null,null,null,null,"",""]
[null,null,null,null,null,null,null,null,"",""]
[null,null,null,null,null,null,null,null,"",""]
[null,null,null,null,null,null,null,null,"",""]
[null,null,null,null,null,null,null,null,"",""]
[null,null,null,null,null,null,null,null,"",""]
[null,null,null,null,null,null,null,null,"",""]
[null,null,null,null,null,null,null,null,"",""]
[null,null,null,null,null,null,null,null,"",""]
[null,null,null,null,null,null,null,null,"",""]
[null,null,null,null,null,null,null,null,"",""]
[null,null,null,null,null,null,null,null,"",""]
[null,null,null,null,null,null,null,null,"",""]
[null,null,null,null,null,null,null,null,{"$f":"IF(G353=\"\",\"\",(IF(J353=\"\",\"\",(G353-J353))))","v":""},{"$f":"IF(SUM(S353:BR353)=0,\"\",(SUM(S353:BR353)))","v":""}]
[null,null,null,null,null,null,null,null,"",""]
[null,null,null,null,null,null,null,null,"",""]
[null,null,null,null,null,null,null,null,"",""]
[null,null,null,null,null,null,null,null,"",""]
[null,null,null,null,null,null,null,null,"",""]
[null,null,null,null,null,null,null,null,"",""]
[null,null,null,null,null,null,null,null,"",""]
[null,null,null,null,null,null,null,null,"",""]
[null,null,null,null,null,null,null,null,"",""]
[null,null,null,null,null,null,null,null,"",""]
[null,null,null,null,null,null,null,null,"",""]
[null,null,null,null,null,null,null,null,"",""]
[null,null,null,null,null,null,null,null,"",""]
[null,null,null,null,null,null,null,null,"",""]
[null,null,null,null,null,null,null,null,"",""]
[null,null,null,null,null,null,null,null,"",""]
[null,null,null,null,null,null,null,null,"",""]
[null,null,null,null,null,null,null,null,"",""]
[null,null,null,null,null,null,null,null,"",""]
[null,null,null,null,null,null,null,null,"",""]
[null,null,null,null,null,null,null,null,"",""]
[null,null,null,null,null,null,null,null,"",""]
[null,null,null,null,null,null,null,null,"",""]
[null,null,null,null,null,null,null,null,"",""]
[null,null,null,null,null,null,null,null,"",""]
[null,null,null,null,null,null,null,null,"",""]
[null,null,null,null,null,null,null,null,"",""]
[null,null,null,null,null,null,null,null,"",""]
[null,null,null,null,null,null,null,null,"",""]
[null,null,null,null,null,null,null,null,"",""]
[null,null,null,null,null,null,null,null,"",""]
[null,null,null,null,null,null,null,null,"",""]
[null,null,null,null,null,null,null,null,"",""]
[null,null,null,null,null,null,null,null,"",""]
[null,null,null,null,null,null,null,null,"",""]
[null,null,null,null,null,null,null,null,"",""]
[null,null,null,null,null,null,null,null,"",""]
[null,null,null,null,null,null,null,null,"",""]
[null,null,null,null,null,null,null,null,"",""]
[null,null,null,null,null,null,null,null,"",""]
[null,null,null,null,null,null,null,null,"",""]
[null,null,null,null,null,null,null,null,"",""]
[null,null,null,null,null,null,null,null,"",""]
[null,null,null,null,null,null,null,null,"",""]
[null,null,null,null,null,null,null,null,"",""]
[null,null,null,null,null,null,null,null,"",""]
[null,null,null,null,null,null,null,null,"",""]
[null,null,null,null,null,null,null,null,"",""]
[null,null,null,null,null,null,null,null,"",""]
[null,null,null,null,null,null,null,null,"",""]
[null,null,null,null,null,null,null,null,"",""]
[null,null,null,null,null,null,null,null,"",""]
[null,null,null,null,null,null,null,null,"",""]
[null,null,null,null,null,null,null,null,"",""]
[null,null,null,null,null,null,null,null,"",""]
[null,null,null,null,null,null,null,null,"",""]
[null,null,null,null,null,null,null,null,"",""]
[null,null,null,null,null,null,null,null,"",""]
[null,null,null,null,null,null,null,null,"",""]
[null,null,null,null,null,null,null,null,"",""]
[null,null,null,null,null,null,null,null,"",""]
[null,null,null,null,null,null,null,null,"",""]
[null,null,null,null,null,null,null,null,"",""]
[null,null,null,null,null,null,null,null,{"$f":"IF(G417=\"\",\"\",(IF(J417=\"\",\"\",(G417-J417))))","v":""},{"$f":"IF(SUM(S417:BR417)=0,\"\",(SUM(S417:BR417)))","v":""}]
[null,null,null,null,null,null,null,null,"",""]
[null,null,null,null,null,null,null,null,"",""]
[null,null,null,null,null,null,null,null,"",""]
[null,null,null,null,null,null,null,null,"",""]
[null,null,null,null,null,null,null,null,"",""]
[null,null,null,null,null,null,null,null,"",""]
[null,null,null,null,null,null,null,null,"",""]
[null,null,null,null,null,null,null,null,"",""]
[null,null,null,null,null,null,null,null,"",""]
[null,null,null,null,null,null,null,null,"",""]
[null,null,null,null,null,null,null,null,"",""]
[null,null,null,null,null,null,null,null,"",""]
[null,null,null,null,null,null,null,null,"",""]
[null,null,null,null,null,null,null,null,"",""]
[null,null,null,null,null,null,null,null,"",""]
[null,null,null,null,null,null,null,null,"",""]
[null,null,null,null,null,null,null,null,"",""]
[null,null,null,null,null,null,null,null,"",""]
[null,null,null,null,null,null,null,null,"",""]
[null,null,null,null,null,null,null,null,"",""]
[null,null,null,null,null,null,null,null,"",""]
[null,null,null,null,null,null,null,null,"",""]
[null,null,null,null,null,null,null,null,"",""]
[null,null,null,null,null,null,null,null,"",""]
[null,null,null,null,null,null,null,null,"",""]
[null,null,null,null,null,null,null,null,"",""]
[null,null,null,null,null,null,null,null,"",""]
[null,null,null,null,null,null,null,null,"",""]
[null,null,null,null,null,null,null,null,"",""]
[null,null,null,null,null,null,null,null,"",""]
[null,null,null,null,null,null,null,null,"",""]
[null,null,null,null,null,null,null,null,"",""]
[null,null,null,null,null,null,null,null,"",""]
[null,null,null,null,null,null,null,null,"",""]
[null,null,null,null,null,null,null,null,"",""]
[null,null,null,null,null,null,null,null,"",""]
[null,null,null,null,null,null,null,null,"",""]
[null,null,null,null,null,null,null,null,"",""]
[null,null,null,null,null,null,null,null,"",""]
[null,null,null,null,null,null,null,null,"",""]
[null,null,null,null,null,null,null,null,"",""]
[null,null,null,null,null,null,null,null,"",""]
[null,null,null,null,null,null,null,null,"",""]
[null,null,null,null,null,null,null,null,"",""]
[null,null,null,null,null,null,null,null,"",""]
[null,null,null,null,null,null,null,null,"",""]
[null,null,null,null,null,null,null,null,"",""]
[null,null,null,null,null,null,null,null,"",""]
[null,null,null,null,null,null,null,null,"",""]
[null,null,null,null,null,null,null,null,"",""]
[null,null,null,null,null,null,null,null,"",""]
[null,null,null,null,null,null,null,null,"",""]
[null,null,null,null,null,null,null,null,"",""]
[null,null,null,null,null,null,null,null,"",""]
[null,null,null,null,null,null,null,null,"",""]
[null,null,null,null,null,null,null,null,"",""]
[null,null,null,null,null,null,null,null,"",""]
[null,null,null,null,null,null,null,null,"",""]
[null,null,null,null,null,null,null,null,"",""]
[null,null,null,null,null,null,null,null,"",""]
[null,null,null,null,null,null,null,null,"",""]
[null,null,null,null,null,null,null,null,"",""]
[null,null,null,null,null,null,null,null,"",""]
[null,null,null,null,null,null,null,null,{"$f":"IF(G481=\"\",\"\",(IF(J481=\"\",\"\",(G481-J481))))","v":""},{"$f":"IF(SUM(S481:BR481)=0,\"\",(SUM(S481:BR481)))","v":""}]
[null,null,null,null,null,null,null,null,"",""]
[null,null,null,null,null,null,null,null,"",""]
[null,null,null,null,null,null,null,null,"",""]
[null,null,null,null,null,null,null,null,"",""]
[null,null,null,null,null,null,null,null,"",""]
[null,null,null,null,null,null,null,null,"",""]
[null,null,null,null,null,null,null,null,"",""]
[null,null,null,null,null,null,null,null,"",""]
[null,null,null,null,null,null,null,null,"",""]
[null,null,null,null,null,null,null,null,"",""]
[null,null,null,null,null,null,null,null,"",""]
[null,null,null,null,null,null,null,null,"",""]
[null,null,null,null,null,null,null,null,"",""]
[null,null,null,null,null,null,null,null,"",""]
[null,null,null,null,null,null,null,null,"",""]
[null,null,null,null,null,null,null,null,"",""]
[null,null,null,null,null,null,null,null,"",""]
[null,null,null,null,null,null,null,null,"",""]
[null,null,null,null,null,null,null,null,"",""]
[null,null,null,null,null,null,null,null,"",""]
[null,null,null,null,null,null,null,null,"",""]
[null,null,null,null,null,null,null,null,"",""]
[null,null,null,null,null,null,null,null,"",""]
[null,null,null,null,null,null,null,null,"",""]
[null,null,null,null,null,null,null,null,"",""]
[null,null,null,null,null,null,null,null,"",""]
[null,null,null,null,null,null,null,null,"",""]
[null,null,null,null,null,null,null,null,"",""]
[null,null,null,null,null,null,null,null,"",""]
[null,null,null,null,null,null,null,null,"",""]
[null,null,null,null,null,null,null,null,"",""]
[null,null,null,null,null,null,null,null,"",""]
[null,null,null,null,null,null,null,null,"",""]
[null,null,null,null,null,null,null,null,"",""]
[null,null,null,null,null,null,null,null,"",""]
[null,null,null,null,null,null,null,null,"",""]
[null,null,null,null,null,null,null,null,"",""]
[null,null,null,null,null,null,null,null,"",""]
[null,null,null,null,null,null,null,null,"",""]
[null,null,null,null,null,null,null,null,"",""]
[null,null,null,null,null,null,null,null,"",""]
[null,null,null,null,null,null,null,null,"",""]
[null,null,null,null,null,null,null,null,"",""]
[null,null,null,null,null,null,null,null,"",""]
[null,null,null,null,null,null,null,null,"",""]
[null,null,null,null,null,null,null,null,"",""]
[null,null,null,null,null,null,null,null,"",""]
[null,null,null,null,null,null,null,null,"",""]
[null,null,null,null,null,null,null,null,"",""]
[null,null,null,null,null,null,null,null,"",""]
[null,null,null,null,null,null,null,null,"",""]
[null,null,null,null,null,null,null,null,"",""]
[null,null,null,null,null,null,null,null,"",""]
[null,null,null,null,null,null,null,null,"",""]
[null,null,null,null,null,null,null,null,"",""]
[null,null,null,null,null,null,null,null,"",""]
[null,null,null,null,null,null,null,null,"",""]
[null,null,null,null,null,null,null,null,"",""]
[null,null,null,null,null,null,null,null,"",""]
[null,null,null,null,null,null,null,null,"",""]
[null,null,null,null,null,null,null,null,"",""]
[null,null,null,null,null,null,null,null,"",""]
[null,null,null,null,null,null,null,null,"",""]
[null,null,null,null,null,null,null,null,{"$f":"IF(G545=\"\",\"\",(IF(J545=\"\",\"\",(G545-J545))))","v":""},{"$f":"IF(SUM(S545:BR545)=0,\"\",(SUM(S545:BR545)))","v":""}]
[null,null,null,null,null,null,null,null,"",""]
[null,null,null,null,null,null,null,null,"",""]
[null,null,null,null,null,null,null,null,"",""]
[null,null,null,null,null,null,null,null,"",""]
[null,null,null,null,null,null,null,null,"",""]
[null,null,null,null,null,null,null,null,"",""]
[null,null,null,null,null,null,null,null,"",""]
[null,null,null,null,null,null,null,null,"",""]
[null,null,null,null,null,null,null,null,"",""]
[null,null,null,null,null,null,null,null,"",""]
[null,null,null,null,null,null,null,null,"",""]
[null,null,null,null,null,null,null,null,"",""]
[null,null,null,null,null,null,null,null,"",""]
[null,null,null,null,null,null,null,null,"",""]
[null,null,null,null,null,null,null,null,"",""]
[null,null,null,null,null,null,null,null,"",""]
[null,null,null,null,null,null,null,null,"",""]
[null,null,null,null,null,null,null,null,"",""]
[null,null,null,null,null,null,null,null,"",""]
[null,null,null,null,null,null,null,null,"",""]
[null,null,null,null,null,null,null,null,"",""]
[null,null,null,null,null,null,null,null,"",""]
[null,null,null,null,null,null,null,null,"",""]
[null,null,null,null,null,null,null,null,"",""]
[null,null,null,null,null,null,null,null,"",""]
[null,null,null,null,null,null,null,null,"",""]
[null,null,null,null,null,null,null,null,"",""]
[null,null,null,null,null,null,null,null,"",""]
[null,null,null,null,null,null,null,null,"",""]
[null,null,null,null,null,null,null,null,"",""]
[null,null,null,null,null,null,null,null,"",""]
[null,null,null,null,null,null,null,null,"",""]
[null,null,null,null,null,null,null,null,"",""]
[null,null,null,null,null,null,null,null,"",""]
[null,null,null,null,null,null,null,null,"",""]
[null,null,null,null,null,null,null,null,"",""]
[null,null,null,null,null,null,null,null,"",""]
[null,null,null,null,null,null,null,null,"",""]
[null,null,null,null,null,null,null,null,"",""]
[null,null,null,null,null,null,null,null,"",""]
[null,null,null,null,null,null,null,null,"",""]
[null,null,null,null,null,null,null,null,"",""]
[null,null,null,null,null,null,null,null,"",""]
[null,null,null,null,null,null,null,null,"",""]
[null,null,null,null,null,null,null,null,"",""]
[null,null,null,null,null,null,null,null,"",""]
[null,null,null,null,null,null,null,null,"",""]
[null,null,null,null,null,null,null,null,"",""]
[null,null,null,null,null,null,null,null,"",""]
[null,null,null,null,null,null,null,null,"",""]
[null,null,null,null,null,null,null,null,"",""]
[null,null,null,null,null,null,null,null,"",""]
[null,null,null,null,null,null,null,null,"",""]
[null,null,null,null,null,null,null,null,"",""]
[null,null,null,null,null,null,null,null,"",""]
[null,null,null,null,null,null,null,null,"",""]
[null,null,null,null,null,null,null,null,"",""]
[null,null,null,null,null,null,null,null,"",""]
[null,null,null,null,null,null,null,null,"",""]
[null,null,null,null,null,null,null,null,"",""]
[null,null,null,null,null,null,null,null,"",""]
[null,null,null,null,null,null,null,null,"",""]
[null,null,null,null,null,null,null,null,"",""]
[null,null,null,null,null,null,null,null,{"$f":"IF(G609=\"\",\"\",(IF(J609=\"\",\"\",(G609-J609))))","v":""},{"$f":"IF(SUM(S609:BR609)=0,\"\",(SUM(S609:BR609)))","v":""}]
[null,null,null,null,null,null,null,null,"",""]
[null,null,null,null,null,null,null,null,"",""]
[null,null,null,null,null,null,null,null,"",""]
[null,null,null,null,null,null,null,null,"",""]
[null,null,null,null,null,null,null,null,"",""]
[null,null,null,null,null,null,null,null,"",""]
[null,null,null,null,null,null,null,null,"",""]
[null,null,null,null,null,null,null,null,"",""]
[null,null,null,null,null,null,null,null,"",""]
[null,null,null,null,null,null,null,null,"",""]
[null,null,null,null,null,null,null,null,"",""]
[null,null,null,null,null,null,null,null,"",""]
[null,null,null,null,null,null,null,null,"",""]
[null,null,null,null,null,null,null,null,"",""]
[null,null,null,null,null,null,null,null,"",""]
[null,null,null,null,null,null,null,null,"",""]
[null,null,null,null,null,null,null,null,"",""]
[null,null,null,null,null,null,null,null,"",""]
[null,null,null,null,null,null,null,null,"",""]
[null,null,null,null,null,null,null,null,"",""]
[null,null,null,null,null,null,null,null,"",""]
[null,null,null,null,null,null,null,null,"",""]
[null,null,null,null,null,null,null,null,"",""]
[null,null,null,null,null,null,null,null,"",""]
[null,null,null,null,null,null,null,null,"",""]
[null,null,null,null,null,null,null,null,"",""]
[null,null,null,null,null,null,null,null,"",""]
[null,null,null,null,null,null,null,null,"",""]
[null,null,null,null,null,null,null,null,"",""]
[null,null,null,null,null,null,null,null,"",""]
[null,null,null,null,null,null,null,null,"",""]
[null,null,null,null,null,null,null,null,"",""]
[null,null,null,null,null,null,null,null,"",""]
[null,null,null,null,null,null,null,null,"",""]
[null,null,null,null,null,null,null,null,"",""]
[null,null,null,null,null,null,null,null,"",""]
[null,null,null,null,null,null,null,null,"",""]
[null,null,null,null,null,null,null,null,"",""]
[null,null,null,null,null,null,null,null,"",""]
[null,null,null,null,null,null,null,null,"",""]
[null,null,null,null,null,null,null,null,"",""]
[null,null,null,null,null,null,null,null,"",""]
[null,null,null,null,null,null,null,null,"",""]
[null,null,null,null,null,null,null,null,"",""]
[null,null,null,null,null,null,null,null,"",""]
[null,null,null,null,null,null,null,null,"",""]
[null,null,null,null,null,null,null,null,"",""]
[null,null,null,null,null,null,null,null,"",""]
[null,null,null,null,null,null,null,null,"",""]
[null,null,null,null,null,null,null,null,"",""]
[null,null,null,null,null,null,null,null,"",""]
[null,null,null,null,null,null,null,null,"",""]
[null,null,null,null,null,null,null,null,"",""]
[null,null,null,null,null,null,null,null,"",""]
[null,null,null,null,null,null,null,null,"",""]
[null,null,null,null,null,null,null,null,"",""]
[null,null,null,null,null,null,null,null,"",""]
[null,null,null,null,null,null,null,null,"",""]
[null,null,null,null,null,null,null,null,"",""]
[null,null,null,null,null,null,null,null,"",""]
[null,null,null,null,null,null,null,null,"",""]
[null,null,null,null,null,null,null,null,"",""]
[null,null,null,null,null,null,null,null,"",""]
[null,null,null,null,null,null,null,null,{"$f":"IF(G673=\"\",\"\",(IF(J673=\"\",\"\",(G673-J673))))","v":""},{"$f":"IF(SUM(S673:BR673)=0,\"\",(SUM(S673:BR673)))","v":""}]
[null,null,null,null,null,null,null,null,"",""]
[null,null,null,null,null,null,null,null,"",""]
[null,null,null,null,null,null,null,null,"",""]
[null,null,null,null,null,null,null,null,"",""]
[null,null,null,null,null,null,null,null,"",""]
[null,null,null,null,null,null,null,null,"",""]
[null,null,null,null,null,null,null,null,"",""]
[null,null,null,null,null,null,null,null,"",""]
[null,null,null,null,null,null,null,null,"",""]
[null,null,null,null,null,null,null,null,"",""]
[null,null,null,null,null,null,null,null,"",""]
[null,null,null,null,null,null,null,null,"",""]
[null,null,null,null,null,null,null,null,"",""]
[null,null,null,null,null,null,null,null,"",""]
[null,null,null,null,null,null,null,null,"",""]
[null,null,null,null,null,null,null,null,"",""]
[null,null,null,null,null,null,null,null,"",""]
[null,null,null,null,null,null,null,null,"",""]
[null,null,null,null,null,null,null,null,"",""]
[null,null,null,null,null,null,null,null,"",""]
[null,null,null,null,null,null,null,null,"",""]
[null,null,null,null,null,null,null,null,"",""]
[null,null,null,null,null,null,null,null,"",""]
[null,null,null,null,null,null,null,null,"",""]
[null,null,null,null,null,null,null,null,"",""]
[null,null,null,null,null,null,null,null,"",""]
[null,null,null,null,null,null,null,null,"",""]
[null,null,null,null,null,null,null,null,"",""]
[null,null,null,null,null,null,null,null,"",""]
[null,null,null,null,null,null,null,null,"",""]
[null,null,null,null,null,null,null,null,"",""]
[null,null,null,null,null,null,null,null,"",""]
[null,null,null,null,null,null,null,null,"",""]
[null,null,null,null,null,null,null,null,"",""]
[null,null,null,null,null,null,null,null,"",""]
[null,null,null,null,null,null,null,null,"",""]
[null,null,null,null,null,null,null,null,"",""]
[null,null,null,null,null,null,null,null,"",""]
[null,null,null,null,null,null,null,null,"",""]
[null,null,null,null,null,null,null,null,"",""]
[null,null,null,null,null,null,null,null,"",""]
[null,null,null,null,null,null,null,null,"",""]
[null,null,null,null,null,null,null,null,"",""]
[null,null,null,null,null,null,null,null,"",""]
[null,null,null,null,null,null,null,null,"",""]
[null,null,null,null,null,null,null,null,"",""]
[null,null,null,null,null,null,null,null,"",""]
[null,null,null,null,null,null,null,null,"",""]
[null,null,null,null,null,null,null,null,"",""]
[null,null,null,null,null,null,null,null,"",""]
[null,null,null,null,null,null,null,null,"",""]
[null,null,null,null,null,null,null,null,"",""]
[null,null,null,null,null,null,null,null,"",""]
[null,null,null,null,null,null,null,null,"",""]
[null,null,null,null,null,null,null,null,"",""]
[null,null,null,null,null,null,null,null,"",""]
[null,null,null,null,null,null,null,null,"",""]
[null,null,null,null,null,null,null,null,"",""]
[null,null,null,null,null,null,null,null,"",""]
[null,null,null,null,null,null,null,null,"",""]
[null,null,null,null,null,null,null,null,"",""]
[null,null,null,null,null,null,null,null,"",""]
[null,null,null,null,null,null,null,null,"",""]
[null,null,null,null,null,null,null,null,{"$f":"IF(G737=\"\",\"\",(IF(J737=\"\",\"\",(G737-J737))))","v":""},{"$f":"IF(SUM(S737:BR737)=0,\"\",(SUM(S737:BR737)))","v":""}]
[null,null,null,null,null,null,null,null,"",""]
[null,null,null,null,null,null,null,null,"",""]
[null,null,null,null,null,null,null,null,"",""]
[null,null,null,null,null,null,null,null,"",""]
[null,null,null,null,null,null,null,null,"",""]
[null,null,null,null,null,null,null,null,"",""]
[null,null,null,null,null,null,null,null,"",""]
[null,null,null,null,null,null,null,null,"",""]
[null,null,null,null,null,null,null,null,"",""]
[null,null,null,null,null,null,null,null,"",""]
[null,null,null,null,null,null,null,null,"",""]
[null,null,null,null,null,null,null,null,"",""]
[null,null,null,null,null,null,null,null,"",""]
[null,null,null,null,null,null,null,null,"",""]
[null,null,null,null,null,null,null,null,"",""]
[null,null,null,null,null,null,null,null,"",""]
[null,null,null,null,null,null,null,null,"",""]
[null,null,null,null,null,null,null,null,"",""]
[null,null,null,null,null,null,null,null,"",""]
[null,null,null,null,null,null,null,null,"",""]
[null,null,null,null,null,null,null,null,"",""]
[null,null,null,null,null,null,null,null,"",""]
[null,null,null,null,null,null,null,null,"",""]
[null,null,null,null,null,null,null,null,"",""]
[null,null,null,null,null,null,null,null,"",""]
[null,null,null,null,null,null,null,null,"",""]
[null,null,null,null,null,null,null,null,"",""]
[null,null,null,null,null,null,null,null,"",""]
[null,null,null,null,null,null,null,null,"",""]
[null,null,null,null,null,null,null,null,"",""]
[null,null,null,null,null,null,null,null,"",""]
[null,null,null,null,null,null,null,null,"",""]
[null,null,null,null,null,null,null,null,"",""]
[null,null,null,null,null,null,null,null,"",""]
[null,null,null,null,null,null,null,null,"",""]
[null,null,null,null,null,null,null,null,"",""]
[null,null,null,null,null,null,null,null,"",""]
[null,null,null,null,null,null,null,null,"",""]
[null,null,null,null,null,null,null,null,"",""]
[null,null,null,null,null,null,null,null,"",""]
[null,null,null,null,null,null,null,null,"",""]
[null,null,null,null,null,null,null,null,"",""]
[null,null,null,null,null,null,null,null,"",""]
[null,null,null,null,null,null,null,null,"",""]
[null,null,null,null,null,null,null,null,"",""]
[null,null,null,null,null,null,null,null,"",""]
[null,null,null,null,null,null,null,null,"",""]
[null,null,null,null,null,null,null,null,"",""]
[null,null,null,null,null,null,null,null,"",""]
[null,null,null,null,null,null,null,null,"",""]
[null,null,null,null,null,null,null,null,"",""]
[null,null,null,null,null,null,null,null,"",""]
[null,null,null,null,null,null,null,null,"",""]
[null,null,null,null,null,null,null,null,"",""]
[null,null,null,null,null,null,null,null,"",""]
[null,null,null,null,null,null,null,null,"",""]
[null,null,null,null,null,null,null,null,"",""]
[null,null,null,null,null,null,null,null,"",""]
[null,null,null,null,null,null,null,null,"",""]
[null,null,null,null,null,null,null,null,"",""]
[null,null,null,null,null,null,null,null,"",""]
[null,null,null,null,null,null,null,null,"",""]
[null,null,null,null,null,null,null,null,"",""]
[null,null,null,null,null,null,null,null,{"$f":"IF(G801=\"\",\"\",(IF(J801=\"\",\"\",(G801-J801))))","v":""},{"$f":"IF(SUM(S801:BR801)=0,\"\",(SUM(S801:BR801)))","v":""}]
[null,null,null,null,null,null,null,null,"",""]
[null,null,null,null,null,null,null,null,"",""]
[null,null,null,null,null,null,null,null,"",""]
[null,null,null,null,null,null,null,null,"",""]
[null,null,null,null,null,null,null,null,"",""]
[null,null,null,null,null,null,null,null,"",""]
[null,null,null,null,null,null,null,null,"",""]
[null,null,null,null,null,null,null,null,"",""]
[null,null,null,null,null,null,null,null,"",""]
[null,null,null,null,null,null,null,null,"",""]
[null,null,null,null,null,null,null,null,"",""]
[null,null,null,null,null,null,null,null,"",""]
[null,null,null,null,null,null,null,null,"",""]
[null,null,null,null,null,null,null,null,"",""]
[null,null,null,null,null,null,null,null,"",""]
[null,null,null,null,null,null,null,null,"",""]
[null,null,null,null,null,null,null,null,"",""]
[null,null,null,null,null,null,null,null,"",""]
[null,null,null,null,null,null,null,null,"",""]
[null,null,null,null,null,null,null,null,"",""]
[null,null,null,null,null,null,null,null,"",""]
[null,null,null,null,null,null,null,null,"",""]
[null,null,null,null,null,null,null,null,"",""]
[null,null,null,null,null,null,null,null,"",""]
[null,null,null,null,null,null,null,null,"",""]
[null,null,null,null,null,null,null,null,"",""]
[null,null,null,null,null,null,null,null,"",""]
[null,null,null,null,null,null,null,null,"",""]
[null,null,null,null,null,null,null,null,"",""]
[null,null,null,null,null,null,null,null,"",""]
[null,null,null,null,null,null,null,null,"",""]
[null,null,null,null,null,null,null,null,"",""]
[null,null,null,null,null,null,null,null,"",""]
[null,null,null,null,null,null,null,null,"",""]
[null,null,null,null,null,null,null,null,"",""]
[null,null,null,null,null,null,null,null,"",""]
[null,null,null,null,null,null,null,null,"",""]
[null,null,null,null,null,null,null,null,"",""]
[null,null,null,null,null,null,null,null,"",""]
[null,null,null,null,null,null,null,null,"",""]
[null,null,null,null,null,null,null,null,"",""]
[null,null,null,null,null,null,null,null,"",""]
[null,null,null,null,null,null,null,null,"",""]
[null,null,null,null,null,null,null,null,"",""]
[null,null,null,null,null,null,null,null,"",""]
[null,null,null,null,null,null,null,null,"",""]
[null,null,null,null,null,null,null,null,"",""]
[null,null,null,null,null,null,null,null,"",""]
[null,null,null,null,null,null,null,null,"",""]
[null,null,null,null,null,null,null,null,"",""]
[null,null,null,null,null,null,null,null,"",""]
[null,null,null,null,null,null,null,null,"",""]
[null,null,null,null,null,null,null,null,"",""]
[null,null,null,null,null,null,null,null,"",""]
[null,null,null,null,null,null,null,null,"",""]
[null,null,null,null,null,null,null,null,"",""]
[null,null,null,null,null,null,null,null,"",""]
[null,null,null,null,null,null,null,null,"",""]
[null,null,null,null,null,null,null,null,"",""]
[null,null,null,null,null,null,null,null,"",""]
[null,null,null,null,null,null,null,null,"",""]
[null,null,null,null,null,null,null,null,"",""]
[null,null,null,null,null,null,null,null,"",""]
[null,null,null,null,null,null,null,null,{"$f":"IF(G865=\"\",\"\",(IF(J865=\"\",\"\",(G865-J865))))","v":""},{"$f":"IF(SUM(S865:BR865)=0,\"\",(SUM(S865:BR865)))","v":""}]
[null,null,null,null,null,null,null,null,"",""]
[null,null,null,null,null,null,null,null,"",""]
[null,null,null,null,null,null,null,null,"",""]
[null,null,null,null,null,null,null,null,"",""]
[null,null,null,null,null,null,null,null,"",""]
[null,null,null,null,null,null,null,null,"",""]
[null,null,null,null,null,null,null,null,"",""]
[null,null,null,null,null,null,null,null,"",""]
[null,null,null,null,null,null,null,null,"",""]
[null,null,null,null,null,null,null,null,"",""]
[null,null,null,null,null,null,null,null,"",""]
[null,null,null,null,null,null,null,null,"",""]
[null,null,null,null,null,null,null,null,"",""]
[null,null,null,null,null,null,null,null,"",""]
[null,null,null,null,null,null,null,null,"",""]
[null,null,null,null,null,null,null,null,"",""]
[null,null,null,null,null,null,null,null,"",""]
[null,null,null,null,null,null,null,null,"",""]
[null,null,null,null,null,null,null,null,"",""]
[null,null,null,null,null,null,null,null,"",""]
[null,null,null,null,null,null,null,null,"",""]
[null,null,null,null,null,null,null,null,"",""]
[null,null,null,null,null,null,null,null,"",""]
[null,null,null,null,null,null,null,null,"",""]
[null,null,null,null,null,null,null,null,"",""]
[null,null,null,null,null,null,null,null,"",""]
[null,null,null,null,null,null,null,null,"",""]
[null,null,null,null,null,null,null,null,"",""]
[null,null,null,null,null,null,null,null,"",""]
[null,null,null,null,null,null,null,null,"",""]
[null,null,null,null,null,null,null,null,"",""]
[null,null,null,null,null,null,null,null,"",""]
[null,null,null,null,null,null,null,null,"",""]
[null,null,null,null,null,null,null,null,"",""]
[null,null,null,null,null,null,null,null,"",""]
[null,null,null,null,null,null,null,null,"",""]
[null,null,null,null,null,null,null,null,"",""]
[null,null,null,null,null,null,null,null,"",""]
[null,null,null,null,null,null,null,null,"",""]
[null,null,null,null,null,null,null,null,"",""]
[null,null,null,null,null,null,null,null,"",""]
[null,null,null,null,null,null,null,null,"",""]
[null,null,null,null,null,null,null,null,"",""]
[null,null,null,null,null,null,null,null,"",""]
[null,null,null,null,null,null,null,null,"",""]
[null,null,null,null,null,null,null,null,"",""]
[null,null,null,null,null,null,null,null,"",""]
[null,null,null,null,null,null,null,null,"",""]
[null,null,null,null,null,null,null,null,"",""]
[null,null,null,null,null,null,null,null,"",""]
[null,null,null,null,null,null,null,null,"",""]
[null,null,null,null,null,null,null,null,"",""]
[null,null,null,null,null,null,null,null,"",""]
[null,null,null,null,null,null,null,null,"",""]
[null,null,null,null,null,null,null,null,"",""]
[null,null,null,null,null,null,null,null,"",""]
[null,null,null,null,null,null,null,null,"",""]
[null,null,null,null,null,null,null,null,"",""]
[null,null,null,null,null,null,null,null,"",""]
[null,null,null,null,null,null,null,null,"",""]
[null,null,null,null,null,null,null,null,"",""]
[null,null,null,null,null,null,null,null,"",""]
[null,null,null,null,null,null,null,null,"",""]
[null,null,null,null,null,null,null,null,{"$f":"IF(G929=\"\",\"\",(IF(J929=\"\",\"\",(G929-J929))))","v":""},{"$f":"IF(SUM(S929:BR929)=0,\"\",(SUM(S929:BR929)))","v":""}]
[null,null,null,null,null,null,null,null,"",""]
[null,null,null,null,null,null,null,null,"",""]
[null,null,null,null,null,null,null,null,"",""]
[null,null,null,null,null,null,null,null,"",""]
[null,null,null,null,null,null,null,null,"",""]
[null,null,null,null,null,null,null,null,"",""]
[null,null,null,null,null,null,null,null,"",""]
[null,null,null,null,null,null,null,null,"",""]
[null,null,null,null,null,null,null,null,"",""]
[null,null,null,null,null,null,null,null,"",""]
[null,null,null,null,null,null,null,null,"",""]
[null,null,null,null,null,null,null,null,"",""]
[null,null,null,null,null,null,null,null,"",""]
[null,null,null,null,null,null,null,null,"",""]
[null,null,null,null,null,null,null,null,"",""]
[null,null,null,null,null,null,null,null,"",""]
[null,null,null,null,null,null,null,null,"",""]
[null,null,null,null,null,null,null,null,"",""]
[null,null,null,null,null,null,null,null,"",""]
[null,null,null,null,null,null,null,null,"",""]
[null,null,null,null,null,null,null,null,"",""]
[null,null,null,null,null,null,null,null,"",""]
[null,null,null,null,null,null,null,null,"",""]
[null,null,null,null,null,null,null,null,"",""]
[null,null,null,null,null,null,null,null,"",""]
[null,null,null,null,null,null,null,null,"",""]
[null,null,null,null,null,null,null,null,"",""]
[null,null,null,null,null,null,null,null,"",""]
[null,null,null,null,null,null,null,null,"",""]
[null,null,null,null,null,null,null,null,"",""]
[null,null,null,null,null,null,null,null,"",""]
[null,null,null,null,null,null,null,null,"",""]
[null,null,null,null,null,null,null,null,"",""]
[null,null,null,null,null,null,null,null,"",""]
[null,null,null,null,null,null,null,null,"",""]
[null,null,null,null,null,null,null,null,"",""]
[null,null,null,null,null,null,null,null,"",""]
[null,null,null,null,null,null,null,null,"",""]
[null,null,null,null,null,null,null,null,"",""]
[null,null,null,null,null,null,null,null,"",""]
[null,null,null,null,null,null,null,null,"",""]
[null,null,null,null,null,null,null,null,"",""]
[null,null,null,null,null,null,null,null,"",""]
[null,null,null,null,null,null,null,null,"",""]
[null,null,null,null,null,null,null,null,"",""]
[null,null,null,null,null,null,null,null,"",""]
[null,null,null,null,null,null,null,null,"",""]
[null,null,null,null,null,null,null,null,"",""]
[null,null,null,null,null,null,null,null,"",""]
[null,null,null,null,null,null,null,null,"",""]
[null,null,null,null,null,null,null,null,"",""]
[null,null,null,null,null,null,null,null,"",""]
[null,null,null,null,null,null,null,null,"",""]
[null,null,null,null,null,null,null,null,"",""]
[null,null,null,null,null,null,null,null,"",""]
[null,null,null,null,null,null,null,null,"",""]
[null,null,null,null,null,null,null,null,"",""]
[null,null,null,null,null,null,null,null,"",""]
[null,null,null,null,null,null,null,null,"",""]
[null,null,null,null,null,null,null,null,"",""]
[null,null,null,null,null,null,null,null,"",""]
[null,null,null,null,null,null,null,null,"",""]
[null,null,null,null,null,null,null,null,"",""]
[null,null,null,null,null,null,null,null,{"$f":"IF(G993=\"\",\"\",(IF(J993=\"\",\"\",(G993-J993))))","v":""},{"$f":"IF(SUM(S993:BR993)=0,\"\",(SUM(S993:BR993)))","v":""}]
[null,null,null,null,null,null,null,null,"",""]
[null,null,null,null,null,null,null,null,"",""]
[null,null,null,null,null,null,null,null,"",""]
[null,null,null,null,null,null,null,null,"",""]
[null,null,null,null,null,null,null,null,"",""]
[null,null,null,null,null,null,null,null,"",""]
[null,null,null,null,null,null,null,null,"",""]
[null,null,null,null,null,null,null,null,"",""]
[null,null,null,null,null,null,null,null,"",""]
[null,null,null,null,null,null,null,null,"",""]
[null,null,null,null,null,null,null,null,"",""]
[null,null,null,null,null,null,null,null,"",""]
[null,null,null,null,null,null,null,null,"",""]
[null,null,null,null,null,null,null,null,"",""]
[null,null,null,null,null,null,null,null,"",""]
[null,null,null,null,null,null,null,null,"",""]
[null,null,null,null,null,null,null,null,"",""]
[null,null,null,null,null,null,null,null,"",""]
[null,null,null,null,null,null,null,null,"",""]
[null,null,null,null,null,null,null,null,"",""]
[null,null,null,null,null,null,null,null,"",""]
[null,null,null,null,null,null,null,null,"",""]
[null,null,null,null,null,null,null,null,"",""]
[null,null,null,null,null,null,null,null,"",""]
[null,null,null,null,null,null,null,null,"",""]
[null,null,null,null,null,null,null,null,"",""]
[null,null,null,null,null,null,null,null,"",""]
[null,null,null,null,null,null,null,null,"",""]
[null,null,null,null,null,null,null,null,"",""]
[null,null,null,null,null,null,null,null,"",""]
[null,null,null,null,null,null,null,null,"",""]
[null,null,null,null,null,null,null,null,"",""]
[null,null,null,null,null,null,null,null,"",""]
[null,null,null,null,null,null,null,null,"",""]
[null,null,null,null,null,null,null,null,"",""]
[null,null,null,null,null,null,null,null,"",""]
[null,null,null,null,null,null,null,null,"",""]
[null,null,null,null,null,null,null,null,"",""]
[null,null,null,null,null,null,null,null,"",""]
[null,null,null,null,null,null,null,null,"",""]
[null,null,null,null,null,null,null,null,"",""]
[null,null,null,null,null,null,null,null,"",""]
[null,null,null,null,null,null,null,null,"",""]
[null,null,null,null,null,null,null,null,"",""]
[null,null,null,null,null,null,null,null,"",""]
[null,null,null,null,null,null,null,null,"",""]
[null,null,null,null,null,null,null,null,"",""]
[null,null,null,null,null,null,null,null,"",""]
[null,null,null,null,null,null,null,null,"",""]
[null,null,null,null,null,null,null,null,"",""]
[null,null,null,null,null,null,null,null,"",""]
[null,null,null,null,null,null,null,null,"",""]
[null,null,null,null,null,null,null,null,"",""]
[null,null,null,null,null,null,null,null,"",""]
[null,null,null,null,null,null,null,null,"",""]
[null,null,null,null,null,null,null,null,"",""]
[null,null,null,null,null,null,null,null,"",""]
[null,null,null,null,null,null,null,null,"",""]
[null,null,null,null,null,null,null,null,"",""]
[null,null,null,null,null,null,null,null,"",""]
[null,null,null,null,null,null,null,null,"",""]
[null,null,null,null,null,null,null,null,"",""]
[null,null,null,null,null,null,null,null,"",""]
[null,null,null,null,null,null,null,null,{"$f":"IF(G1057=\"\",\"\",(IF(J1057=\"\",\"\",(G1057-J1057))))","v":""},{"$f":"IF(SUM(S1057:BR1057)=0,\"\",(SUM(S1057:BR1057)))","v":""}]
[null,null,null,null,null,null,null,null,"",""]
[null,null,null,null,null,null,null,null,"",""]
[null,null,null,null,null,null,null,null,"",""]
[null,null,null,null,null,null,null,null,"",""]
[null,null,null,null,null,null,null,null,"",""]
[null,null,null,null,null,null,null,null,"",""]
[null,null,null,null,null,null,null,null,"",""]
[null,null,null,null,null,null,null,null,"",""]
[null,null,null,null,null,null,null,null,"",""]
[null,null,null,null,null,null,null,null,"",""]
[null,null,null,null,null,null,null,null,"",""]
[null,null,null,null,null,null,null,null,"",""]
[null,null,null,null,null,null,null,null,"",""]
[null,null,null,null,null,null,null,null,"",""]
[null,null,null,null,null,null,null,null,"",""]
[null,null,null,null,null,null,null,null,"",""]
[null,null,null,null,null,null,null,null,"",""]
[null,null,null,null,null,null,null,null,"",""]
[null,null,null,null,null,null,null,null,"",""]
[null,null,null,null,null,null,null,null,"",""]
[null,null,null,null,null,null,null,null,"",""]
[null,null,null,null,null,null,null,null,"",""]
[null,null,null,null,null,null,null,null,"",""]
[null,null,null,null,null,null,null,null,"",""]
[null,null,null,null,null,null,null,null,"",""]
[null,null,null,null,null,null,null,null,"",""]
[null,null,null,null,null,null,null,null,"",""]
[null,null,null,null,null,null,null,null,"",""]
[null,null,null,null,null,null,null,null,"",""]
[null,null,null,null,null,null,null,null,"",""]
[null,null,null,null,null,null,null,null,"",""]
[null,null,null,null,null,null,null,null,"",""]
[null,null,null,null,null,null,null,null,"",""]
[null,null,null,null,null,null,null,null,"",""]
[null,null,null,null,null,null,null,null,"",""]
[null,null,null,null,null,null,null,null,"",""]
[null,null,null,null,null,null,null,null,"",""]
[null,null,null,null,null,null,null,null,"",""]
[null,null,null,null,null,null,null,null,"",""]
[null,null,null,null,null,null,null,null,"",""]
[null,null,null,null,null,null,null,null,"",""]
[null,null,null,null,null,null,null,null,"",""]
[null,null,null,null,null,null,null,null,"",""]
[null,null,null,null,null,null,null,null,"",""]
[null,null,null,null,null,null,null,null,"",""]
[null,null,null,null,null,null,null,null,"",""]
[null,null,null,null,null,null,null,null,"",""]
[null,null,null,null,null,null,null,null,"",""]
[null,null,null,null,null,null,null,null,"",""]
[null,null,null,null,null,null,null,null,"",""]
[null,null,null,null,null,null,null,null,"",""]
[null,null,null,null,null,null,null,null,"",""]
[null,null,null,null,null,null,null,null,"",""]
[null,null,null,null,null,null,null,null,"",""]
[null,null,null,null,null,null,null,null,"",""]
[null,null,null,null,null,null,null,null,"",""]
[null,null,null,null,null,null,null,null,"",""]
[null,null,null,null,null,null,null,null,"",""]
[null,null,null,null,null,null,null,null,"",""]
[null,null,null,null,null,null,null,null,"",""]
[null,null,null,null,null,null,null,null,"",""]
[null,null,null,null,null,null,null,null,"",""]
[null,null,null,null,null,null,null,null,"",""]
[null,null,null,null,null,null,null,null,{"$f":"IF(G1121=\"\",\"\",(IF(J1121=\"\",\"\",(G1121-J1121))))","v":""},{"$f":"IF(SUM(S1121:BR1121)=0,\"\",(SUM(S1121:BR1121)))","v":""}]
[null,null,null,null,null,null,null,null,"",""]
[null,null,null,null,null,null,null,null,"",""]
[null,null,null,null,null,null,null,null,"",""]
[null,null,null,null,null,null,null,null,"",""]
[null,null,null,null,null,null,null,null,"",""]
[null,null,null,null,null,null,null,null,"",""]
[null,null,null,null,null,null,null,null,"",""]
[null,null,null,null,null,null,null,null,"",""]
[null,null,null,null,null,null,null,null,"",""]
[null,null,null,null,null,null,null,null,"",""]
[null,null,null,null,null,null,null,null,"",""]
[null,null,null,null,null,null,null,null,"",""]
[null,null,null,null,null,null,null,null,"",""]
[null,null,null,null,null,null,null,null,"",""]
[null,null,null,null,null,null,null,null,"",""]
[null,null,null,null,null,null,null,null,"",""]
[null,null,null,null,null,null,null,null,"",""]
[null,null,null,null,null,null,null,null,"",""]
[null,null,null,null,null,null,null,null,"",""]
[null,null,null,null,null,null,null,null,"",""]
[null,null,null,null,null,null,null,null,"",""]
[null,null,null,null,null,null,null,null,"",""]
[null,null,null,null,null,null,null,null,"",""]
[null,null,null,null,null,null,null,null,"",{"$f":"IF(SUM(S1145:BR1145)=0,\"-\",(SUM(S1145:BR1145)))","v":"-"}]
[null,null,null,null,null,null,null,null,"","-"]
[null,null,null,null,null,null,null,null,"","-"]
[null,null,null,null,null,null,null,null,"","-"]
[null,null,null,null,null,null,null,null,"","-"]
[null,null,null,null,null,null,null,null,"","-"]
[null,null,null,null,null,null,null,null,"","-"]
[null,null,null,null,null,null,null,null,"","-"]
[null,null,null,null,null,null,null,null,"","-"]
[null,null,null,null,null,null,null,null,"","-"]
[null,null,null,null,null,null,null,null,"","-"]
[null,null,null,null,null,null,null,null,"","-"]
[null,null,null,null,null,null,null,null,"","-"]
[null,null,null,null,null,null,null,null,"","-"]
[null,null,null,null,null,null,null,null,"","-"]
[null,null,null,null,null,null,null,null,"","-"]
[null,null,null,null,null,null,null,null,"","-"]
[null,null,null,null,null,null,null,null,"","-"]
[null,null,null,null,null,null,null,null,"","-"]
[null,null,null,null,null,null,null,null,"","-"]
[null,null,null,null,null,null,null,null,"","-"]
[null,null,null,null,null,null,null,null,"","-"]
[null,null,null,null,null,null,null,null,"","-"]
[null,null,null,null,null,null,null,null,"","-"]
[null,null,null,null,null,null,null,null,"","-"]
[null,null,null,null,null,null,null,null,"","-"]
[null,null,null,null,null,null,null,null,"","-"]
[null,null,null,null,null,null,null,null,"","-"]
[null,null,null,null,null,null,null,null,"","-"]
[null,null,null,null,null,null,null,null,"","-"]
[null,null,null,null,null,null,null,null,"","-"]
[null,null,null,null,null,null,null,null,"","-"]
[null,null,null,null,null,null,null,null,"","-"]
[null,null,null,null,null,null,null,null,"","-"]
[null,null,null,null,null,null,null,null,"","-"]
[null,null,null,null,null,null,null,null,"","-"]
[null,null,null,null,null,null,null,null,"","-"]
[null,null,null,null,null,null,null,null,"","-"]
[null,null,null,null,null,null,null,null,"","-"]
[null,null,null,null,null,null,null,null,"","-"]
[null,null,null,null,null,null,null,null,{"$f":"IF(G1185=\"\",\"\",(IF(J1185=\"\",\"\",(G1185-J1185))))","v":""},"-"]
[null,null,null,null,null,null,null,null,"","-"]
[null,null,null,null,null,null,null,null,"","-"]
[null,null,null,null,null,null,null,null,"","-"]
[null,null,null,null,null,null,null,null,"","-"]
[null,null,null,null,null,null,null,null,"","-"]
[null,null,null,null,null,null,null,null,"","-"]
[null,null,null,null,null,null,null,null,"","-"]
[null,null,null,null,null,null,null,null,"","-"]
[null,null,null,null,null,null,null,null,"",{"$f":"IF(SUM(S1194:BR1194)=0,\"-\",(SUM(S1194:BR1194)))","v":"-"}]
[null,null,null,null,null,null,null,null,null,"-"]
[null,null,null,null,null,null,null,null,null,"-"]
[null,null,null,null,null,null,null,null,null,"-"]
[null,null,null,null,null,null,null,null,null,"-"]
[null,null,null,null,null,null,null,null,null,"-"]
[null,null,null,null,null,null,null,null,null,"-"]
[null,null,null,null,null,null,null,null,null,"-"]
[null,null,null,null,null,null,null,null,null,"-"]
[null,null,null,null,null,null,null,null,null,"-"]
[null,null,null,null,null,null,null,null,null,"-"]
[null,null,null,null,null,null,null,null,null,"-"]
[null,null,null,null,null,null,null,null,null,"-"]
[null,null,null,null,null,null,null,null,null,"-"]
[null,null,null,null,null,null,null,null,null,"-"]
[null,null,null,null,null,null,null,null,null,"-"]
[null,null,null,null,null,null,null,null,null,"-"]
[null,null,null,null,null,null,null,null,null,"-"]
[null,null,null,null,null,null,null,null,null,"-"]
[null,null,null,null,null,null,null,null,null,"-"]
[null,null,null,null,null,null,null,null,null,"-"]
[null,null,null,null,null,null,null,null,null,"-"]
[null,null,null,null,null,null,null,null,null,"-"]
[null,null,null,null,null,null,null,null,null,"-"]
[null,null,null,null,null,null,null,null,null,"-"]

{"sheet":"Data","index":1,"n_rows":39,"n_cols":12,"rows_kept":39,"cut":false,"hidden":false,"merged":[]}
["Categorie"]
["Offerte",null,null,null,null,null,null,null,null,null,null,"Forsmark CSS leg"]
["Opdracht"]
["Studie","Max. teamuren"]
["Vakantie","Offerte"]
["Prospect"]
[]
["Holidays:",null,"weeknr:","weeknr':"]
["Nieuwjaar","2020-01-01",{"$f":"IF(ISBLANK(B9),\"\",WEEKNUM(B9))","v":1},{"$f":"IF(ISBLANK(C9),\"\",\"wk \"&C9)","v":"wk 1"}]
["Goede vrijdag","2020-04-10",{"$f":"IF(ISBLANK(B10),\"\",WEEKNUM(B10))","v":15},{"$f":"IF(ISBLANK(C10),\"\",\"wk \"&C10)","v":"wk 15"}]
["Pasen","2020-04-12",16,"wk 16"]
["Paasmaandag","2020-04-13",16,"wk 16"]
["Koningsdag","2020-04-27",18,"wk 18"]
["Bevrijdingsdag","2020-05-05",19,"wk 19"]
["O.H. Hemelvaart","2020-05-21",21,"wk 21"]
["Pinksteren","2020-05-31",23,"wk 23"]
["Pinkstermaandag","2020-06-01",23,"wk 23"]
["Kerstmis","2020-12-25",52,"wk 52"]
["2de Kerstdag","2020-12-26",{"$f":"IF(ISBLANK(B19),\" \",WEEKNUM(B19))","v":52},"wk 52"]
[null,null,{"$f":"IF(ISBLANK(B20),\"\",WEEKNUM(B20))","v":""},"wk "]
[null,null,"","wk "]
[null,null,37,"wk 37"]
[null,null,"","wk "]
[null,null,"","wk "]
[null,null,"","wk "]
[null,null,"","wk "]
[null,null,"","wk "]
[null,null,"","wk "]
[null,null,"","wk "]
[null,null,"","wk "]
[null,null,""]
["Werkbare uren p.p.:"]
[1600]
["medewerker","%Direct","FTE","Uren",null,"Maanden"]
["Piet",68,0.8,{"$f":"(A$33*C35)/100*B35","v":870.40000000000009},null,"2019-11-01"]
["Frans",25,1,{"$f":"(A$33*C36)/100*B36","v":400},null,"2019-12-01"]
["Peter",0,1,0,null,"2020-01-01"]
["Trudy",90,1,1440,null,"2020-02-01"]
["Sandra",65,1,1040,null,"2020-03-01"]